[Event "I Copa Capivaras Do Nordeste"]
[Site "Skype"]
[Date "?"]
[Round "02.5"]
[White "Fernando Carlos"]
[Black "Jeferson Teles"]
[Result "1-0"]
[ECO "A30"]
[WhiteElo "1664"]
[BlackElo "2001"]
[WhiteHelo "?"]
[TimeControl "600+5"]
[Mode "TC"]
[BlackHelo "?"]
[Termination "time forfeit"]
[UTCDate "2019.11.09"]
[Source "Analyze This Pro"]
[UTCTime "23:52:24"]
[Annotator "Ericlock1.0"]

1. c4 c5 2. Nf3 Nc6 3. e3 e5 4. Be2 e4 5. Ng1 Qg5 6. g3 Nf6 7. Nh3 Qh6 8. Nf4 Bd6
9. Nd5 Nxd5 10. cxd5 Nb4 11. Nc3 O-O 12. Nxe4 Qg6 13. Nxd6 Nc2+ 14. Kf1 Nxa1 15.
Nc4 Qe4 16. f3 Qxd5 17. b3 b5 18. e4 Qb7 19. Nd6 Qa6 20. Nxb5 Qxa2 21. Nc3 Qxb3
22. Qxb3 Nxb3 23. Na2 Rb8 24. Bc4 Nxc1 25. Nxc1 a5 26. Ke2 a4 27. Na2 a3 28. Rc1
d6 29. f4 Be6 30. Bxe6 fxe6 31. e5 {cayó la bandera de las negras}  1-0

[Event "I Copa Capivaras Do Nordeste"]
[Site "Skype"]
[Date "?"]
[Round "02.5"]
[White "Diego França"]
[Black "Givson Silva"]
[Result "1/2-1/2"]
[ECO "A81"]
[WhiteElo "1697"]
[BlackElo "1790"]
[TimeControl "1500+10"]
[BlackFideId "1130420"]
[Source "Analyze This Pro"]
[FCGameId "-940827117"]
[WhiteFideId "13402960"]
[WhiteFed "AZE"]
[BlackFed "POL"]

1. d4 {[%clk 0:05:05]} 1... f5 {[%clk 0:05:06]} 2. g3 {[%clk 0:05:07]} 2... Nf6 {[%clk
0:05:08]} 3. Bg2 {[%clk 0:05:09]} 3... d6 {[%clk 0:05:10]} 4. Nc3 {[%clk 0:04:28]}
4... g6 {[%clk 0:04:55]} 5. e4 {[%clk 0:04:29]} 5... fxe4 {[%clk 0:04:55]} 6. Nxe4
{[%clk 0:04:31]} 6... Bg7 {[%clk 0:04:57]} 7. Nxf6+ {[%clk 0:04:21]} 7... exf6 {[%clk
0:04:46]} 8. Ne2 {[%clk 0:04:24]} 8... d5 {[%clk 0:04:30]} 9. O-O {[%clk 0:04:14]}
9... O-O {[%clk 0:04:31]} 10. Nf4 {[%clk 0:04:14]} 10... c6 {[%clk 0:04:32]} 11.
Re1 {[%clk 0:04:16]} 11... Na6 {[%clk 0:04:26]} 12. c4 {[%clk 0:04:00]} 12... g5
{[%clk 0:03:53]} 13. Nh5 {[%clk 0:03:53]} 13... Nc7 {[%clk 0:03:46]} 14. Nxg7 {[%clk
0:03:33]} 14... Kxg7 {[%clk 0:03:48]} 15. cxd5 {[%clk 0:03:33]} 15... Nxd5 {[%clk
0:03:48]} 16. Qb3 {[%clk 0:03:29]} 16... Rf7 {[%clk 0:03:43]} 17. Bd2 {[%clk 0:03:20]}
17... Bf5 {[%clk 0:03:42]} 18. Re2 {[%clk 0:03:22]} 18... Qd7 {[%clk 0:03:31]} 19.
Rae1 {[%clk 0:03:22]} 19... Bg4 {[%clk 0:03:26]} 20. Re4 {[%clk 0:02:54]} 20...
Bf5 {[%clk 0:03:19]} 21. R4e2 {[%clk 0:02:56]} 21... Bh3 {[%clk 0:03:09]} 22. Bxd5
{[%clk 0:02:46]} 22... cxd5 {[%clk 0:02:54]} 23. Bb4 {[%clk 0:02:46]} 23... Rc8
{[%clk 0:02:37]} 24. f3 {[%clk 0:02:41]} 24... h5 {[%clk 0:02:30]} 25. Qe3 {[%clk
0:02:05]} 25... Qf5 {[%clk 0:02:22]} 26. Bc3 {[%clk 0:01:50]} 26... Rcc7 {[%clk
0:02:15]} 27. Kf2 {[%clk 0:01:44]} 27... Rc8 {[%clk 0:01:39]} 28. Qd2 {[%clk 0:01:38]}
28... Bg4 {[%clk 0:01:18]} 29. Re3 {[%clk 0:01:32]} 29... b6 {[%clk 0:01:12]} 30.
Qd3 {[%clk 0:01:28]} 30... Qxd3 {[%clk 0:01:09]} 31. Rxd3 {[%clk 0:01:30]} 31...
Bf5 {[%clk 0:01:08]} 32. Rde3 {[%clk 0:01:32]} 32... g4 {[%clk 0:01:08]} 33. Re7
{[%clk 0:01:31]} 33... gxf3 {[%clk 0:01:06]} 34. Rxf7+ {[%clk 0:01:33]} 34... Kxf7
{[%clk 0:01:09]} 35. Kxf3 {[%clk 0:01:34]} 35... Be4+ {[%clk 0:01:10]} 36. Ke3 {[%clk
0:01:23]} 36... Rg8 {[%clk 0:01:01]} 37. Re2 {[%clk 0:01:20]} 37... h4 {[%clk 0:01:00]}
38. gxh4 {[%clk 0:01:18]} 38... Rg4 {[%clk 0:00:53]} 39. Be1 {[%clk 0:01:20]} 39...
f5 {[%clk 0:00:44]} 40. Bg3 {[%clk 0:01:21]} 40... Rg8 {[%clk 0:00:35]} 41. Rf2
{[%clk 0:01:11]} 41... Rc8 {[%clk 0:00:34]} 42. Kf4 {[%clk 0:01:11]} 42... Kg6 {[%clk
0:00:28]} 43. Ke5 {[%clk 0:00:53]} 43... a5 {[%clk 0:00:28]} 44. Kd6 {[%clk 0:00:43]}
44... a4 {[%clk 0:00:28]} 45. a3 {[%clk 0:00:33]} 45... Kh5 {[%clk 0:00:28]} 46.
Ke5 {[%clk 0:00:34]} 46... Rc1 {[%clk 0:00:18]} 47. Bf4 {[%clk 0:00:27]} 47... Rg1
{[%clk 0:00:07]} 48. Bg5 {[%clk 0:00:20]} 48... b5 {[%clk 0:00:08]} 49. Kf4 {[%clk
0:00:08]} 49... Rg4+ {[%clk 0:00:06]} 50. Ke5 {[%clk 0:00:10]} 50... Rg1 {[%clk
0:00:08]} 51. Kf6 {[%clk 0:00:11]} 51... Rd1 {[%clk 0:00:06]} 52. Ke5 {[%clk 0:00:08]}
52... Rg1 {[%clk 0:00:07]} 53. Kd6 {[%clk 0:00:07]} 53... Rg2 {[%clk 0:00:06]} 54.
Rxg2 {[%clk 0:00:08]} 54... Bxg2 {[%clk 0:00:08]} 55. Ke5 {[%clk 0:00:10]} 55...
Kg6 {[%clk 0:00:07]} 56. Bd8 {[%clk 0:00:10]} 56... Be4 {[%clk 0:00:07]} 57. Kf4
{[%clk 0:00:12]} 57... Bc2 {[%clk 0:00:07]} 58. Be7 {[%clk 0:00:14]} 58... Bb3 {[%clk
0:00:09]} 59. h5+ {[%clk 0:00:15]} 59... Kxh5 {[%clk 0:00:11]} 60. Kxf5 {[%clk 0:00:17]}
60... Bc4 {[%clk 0:00:13]} 61. Ke5 {[%clk 0:00:15]} 61... Bb3 {[%clk 0:00:16]} 62.
Kd6 {[%clk 0:00:17]} 62... Bc4 {[%clk 0:00:18]} 63. Kc5 {[%clk 0:00:18]} 63... Kg4
{[%clk 0:00:20]} 64. h4 {[%clk 0:00:20]} 64... Kh5 {[%clk 0:00:22]} 65. Kd6 {[%clk
0:00:16]} 65... Kg4 {[%clk 0:00:23]} 66. Ke5 {[%clk 0:00:18]} 66... Kh5 {[%clk 0:00:26]}
67. Kf4 {[%clk 0:00:20]} 67... Bb3 {[%clk 0:00:28] -error}  1/2-1/2

[Event "I Copa Capivaras Do Nordeste"]
[Site "Skype"]
[Date "?"]
[Round "02.6"]
[White "Jeferson Teles"]
[Black "Fernando Carlos"]
[Result "1-0"]
[ECO "D06"]
[WhiteElo "2001"]
[BlackElo "1664"]
[WhiteHelo "?"]
[TimeControl "600+5"]
[Mode "TC"]
[BlackHelo "?"]
[Termination "time forfeit"]
[UTCDate "2019.11.10"]
[Source "Analyze This Pro"]
[UTCTime "00:24:08"]
[Annotator "Ericlock1.0"]

1. d4 Nf6 2. c4 d5 3. cxd5 Nxd5 4. e4 Nf6 5. Nc3 e6 6. Bc4 Bb4 7. Nf3 Bxc3+ 8. bxc3
Nxe4 9. Qc2 Nf6 10. Ba3 Nc6 11. Kf1 Bd7 12. d5 Ne7 13. dxe6 fxe6 14. Ng5 Nfd5 15.
Re1 Qc8 16. Bxd5 Nxd5 17. h4 h6 18. Qg6+ Kd8 19. Nf7+ {cayó la bandera de las negras}
 1-0

[Event "I Copa Capivaras Do Nordeste"]
[Site "Skype"]
[Date "?"]
[Round "02.6"]
[White "Givson Silva"]
[Black "Diego França"]
[Result "1/2-1/2"]
[ECO "A20"]
[WhiteElo "1790"]
[BlackElo "1697"]
[TimeControl "1500+10"]
[BlackFideId "4118987"]
[Source "Analyze This Pro"]
[FCGameId "359349504"]
[WhiteFideId "24116068"]
[WhiteFed "NED"]
[BlackFed "RUS"]

1. c4 {[%clk 0:10:19]} 1... e5 {[%clk 0:10:19]} 2. g3 {[%clk 0:10:28]} 2... Nf6 {[%clk
0:10:27]} 3. Bg2 {[%clk 0:10:38]} 3... c6 {[%clk 0:10:36]} 4. Nf3 {[%clk 0:10:46]}
4... e4 {[%clk 0:10:43]} 5. Nd4 {[%clk 0:10:56]} 5... d5 {[%clk 0:10:50]} 6. d3
{[%clk 0:11:04]} 6... Bc5 {[%clk 0:10:58]} 7. Nb3 {[%clk 0:11:13]} 7... Bb4+ {[%clk
0:11:07]} 8. Bd2 {[%clk 0:11:22]} 8... Bxd2+ {[%clk 0:11:16]} 9. Qxd2 {[%clk 0:11:31]}
9... dxc4 {[%clk 0:11:24]} 10. dxc4 {[%clk 0:11:40]} 10... Qe7 {[%clk 0:11:33]}
11. Nc3 {[%clk 0:11:48]} 11... O-O {[%clk 0:11:41]} 12. Rd1 {[%clk 0:11:20]} 12...
e3 {[%clk 0:11:42]} 13. Qxe3 {[%clk 0:11:29]} 13... Qxe3 {[%clk 0:11:50]} 14. fxe3
{[%clk 0:11:38]} 14... Ng4 {[%clk 0:11:58]} 15. Rd3 {[%clk 0:11:29]} 15... Na6 {[%clk
0:12:03]} 16. a3 {[%clk 0:09:57]} 16... Be6 {[%clk 0:10:57]} 17. Na5 {[%clk 0:09:27]}
17... Nc5 {[%clk 0:10:56]} 18. Rd4 {[%clk 0:09:08]} 18... Nxe3 {[%clk 0:10:59]}
19. Kf2 {[%clk 0:09:18]} 19... Ng4+ {[%clk 0:09:11]} 20. Kf3 {[%clk 0:08:36]} 20...
Nd7 {[%clk 0:08:38]} 21. h3 {[%clk 0:07:46]} 21... Nde5+ {[%clk 0:04:22]} 22. Ke4
{[%clk 0:05:47]} 22... f5+ {[%clk 0:03:46]} 23. Kf4 {[%clk 0:05:56]} 23... c5 {[%clk
0:00:59]} 24. Rd2 {[%clk 0:05:47]} 24... Ng6+ {[%clk 0:00:49]} 25. Kf3 {[%clk 0:05:56]}
25... N6e5+ {[%clk 0:00:43]} 26. Kf4 {[%clk 0:06:06]} 26... Ng6+ {[%clk 0:00:27]}
27. Kf3 {[%clk 0:06:15]} 27... N6e5+  1/2-1/2

[Event "I Copa Capivaras Do Nordeste"]
[Site "Skype"]
[Date "?"]
[Round "02.7"]
[White "Jeferson Teles"]
[Black "Fernando Carlos"]
[Result "1-0"]
[ECO "C00"]
[WhiteElo "2001"]
[BlackElo "1664"]
[WhiteHelo "?"]
[TimeControl "300+5"]
[Mode "TC"]
[BlackHelo "?"]
[Termination "time forfeit"]
[UTCDate "2019.11.10"]
[Source "Analyze This Pro"]
[UTCTime "00:52:52"]
[Annotator "Ericlock1.0"]

1. e4 e6 2. c4 d6 3. Nf3 g6 4. d4 Bg7 5. Bd3 Ne7 6. O-O O-O 7. Nc3 Nd7 8. d5 Ne5
9. Nxe5 Bxe5 10. dxe6 Bxe6 11. Nd5 c6 12. Nf6+ Bxf6 13. e5 Bxe5 14. Bh6 Bg7 15.
Bxg7 Kxg7 16. Bc2 Bf5 17. Bxf5 Nxf5 18. g4 Qf6 19. gxf5 Qxf5 20. Qxd6 Rad8 21. Qb4
Rd4 22. f3 Qg5+ 23. Kf2 {cayó la bandera de las negras}  1-0

[Event "I Copa Capivaras Do Nordeste"]
[Site "Skype"]
[Date "?"]
[Round "02.7"]
[White "Givson Silva"]
[Black "Diego França"]
[Result "1-0"]
[ECO "D06"]
[WhiteElo "1790"]
[BlackElo "1697"]
[WhiteHelo "?"]
[TimeControl "300"]
[Mode "TC"]
[BlackHelo "?"]
[Termination "time forfeit"]
[UTCDate "2019.11.08"]
[Source "Analyze This Pro"]
[UTCTime "20:39:12"]
[Annotator "Ericlock1.0"]

1. d4 Nf6 2. c4 d5 3. cxd5 Nxd5 4. e4 Nf6 5. Nc3 e6 6. e5 Nd5 7. Bc4 Bb4 8. Bxd5
Bxc3+ 9. bxc3 Qxd5 10. Qg4 O-O 11. Bh6 g6 12. Bxf8 Kxf8 13. Qf3 Kg8 14. Qxd5 exd5
15. Nf3 Nc6 16. O-O b5 17. Rab1 a6 18. Rfe1 Bf5 19. Rb2 Na5 20. Rbe2 Nc4 21. Rd1
{cayó la bandera de las negras}  1-0

[Event "I Copa Capivaras Do Nordeste"]
[Site "Skype"]
[Date "?"]
[Round "3.1"]
[White "Joselito Santos"]
[Black "Pedro Tibério"]
[Result "0-1"]
[ECO "D00"]
[WhiteElo "1742"]
[BlackElo "2082"]
[WhiteHelo "?"]
[TimeControl "3600+30"]
[Mode "TC"]
[BlackHelo "?"]
[Termination "Checkmate"]
[UTCDate "2019.11.14"]
[Source "Analyze This Pro"]
[UTCTime "22:55:24"]
[Annotator "Ericlock1.0"]

1. d4 d5 2. Bf4 Nf6 3. e3 e6 4. Nf3 Bd6 5. Bg3 O-O 6. Nbd2 c5 7. c3 Qc7 8. Bd3 Nbd7
9. O-O Bxg3 10. hxg3 e5 11. dxe5 Nxe5 12. Nxe5 Qxe5 13. Nf3 Qh5 14. Nh2 Bg4 15.
f3 Bd7 16. Re1 Qe5 17. f4 Qe6 18. Qc2 c4 19. Bf1 Rfe8 20. b3 b5 21. b4 a5 22. a3
axb4 23. cxb4 Qe7 24. f5 Ne4 25. g4 Qg5 26. Qd1 Ra6 27. Qxd5 Qh4 28. Re2 Rh6 29.
g3 Qxg3+ 30. Rg2 Qxe3+ 31. Kh1 Ng3+ 32. Rxg3 Qxg3 33. Qg2 Bc6 34. Ra2 Qxh2# {jaque
Mate}  0-1

[Event "I Copa Capivaras Do Nordeste"]
[Site "Skype"]
[Date "?"]
[Round "4.1"]
[White "Pedro Tibério"]
[Black "Jeferson Teles"]
[Result "1-0"]
[ECO "C56"]
[WhiteElo "2082"]
[BlackElo "2005"]
[WhiteHelo "?"]
[TimeControl "3600+30"]
[Mode "TC"]
[BlackHelo "?"]
[Termination "Abandoned"]
[UTCDate "2019.11.23"]
[Source "Analyze This Pro"]
[UTCTime "12:59:57"]
[Annotator "Ericlock1.0"]

1. e4 e5 2. Nf3 Nc6 3. d4 exd4 4. Bc4 Nf6 5. O-O Nxe4 6. Bd5 Nc5 7. c3 dxc3 8. Nxc3
Be7 9. Be3 O-O 10. Re1 b6 11. b4 Nb7 12. a3 a5 13. b5 Bf6 14. Rc1 Ne7 15. Bd4 Bxd4
16. Nxd4 Rb8 17. Bf3 d6 18. Rxe7 Qxe7 19. Nc6 Qg5 20. Nxb8 Nc5 21. Nc6 Re8 22. Nd5
Bb7 23. Nxc7 Rc8 24. Nd5 Re8 25. Rb1 a4 26. g3 Nb3 27. h4 Qd2 28. Nxb6 Qh6 29. Bd5
Nd2 30. Rb2 Bxc6 31. Bxc6 d5 32. Bxe8 Nf3+ 33. Qxf3 Qc1+ 34. Kg2 {las negras abandonan}
 1-0

[Event "I Copa Capivaras Do Nordeste"]
[Site "Skype"]
[Date "?"]
[Round "4.2"]
[White "Jeferson Teles"]
[Black "Pedro Tibério"]
[Result "0-1"]
[ECO "A41"]
[WhiteElo "2005"]
[BlackElo "2082"]
[WhiteHelo "?"]
[TimeControl "3600+30"]
[Mode "TC"]
[BlackHelo "?"]
[Termination "Abandoned"]
[UTCDate "2019.11.23"]
[Source "Analyze This Pro"]
[UTCTime "18:12:47"]
[Annotator "Ericlock1.0"]

1. d4 d6 2. e4 c6 3. c4 Nf6 4. Nc3 Nbd7 5. f4 e5 6. Nf3 Qa5 7. Bd3 exd4 8. Nxd4 Nc5
9. O-O Qb6 10. Kh1 Be7 11. e5 dxe5 12. fxe5 Nxd3 13. Qxd3 Ng4 14. Qe4 O-O 15. h3
f5 16. exf6 Bxf6 17. Ne6 Re8 18. Qxg4 Bxe6 19. Qg3 Qd4 20. Be3 Qh4 21. Qc7 Qxc4
22. Rxf6 gxf6 23. Bh6 Bf7 24. Qxb7 Qh4 25. Bc1 Re1+ 26. Kh2 Rae8 27. a4 Rxc1 28.
Nd5 Bxd5 29. Ra3 Rc2 30. Rg3+ Qxg3+ 31. Kxg3 Rxg2+ 32. Kf4 Re4+ 33. Kf3 Re7+ 34.
Kf4 Rxb7 {las negras abandonan}  0-1